bitfinex-derivatives/quotes_ETHF0:USTF0_20250810
["timestamp","ask_amount","ask_price","bid_price","bid_amount"]
[1754826254402,2.224,4214.5,4214.4,2.257]
[1754826254603,2.6686,4214.5,4214.4,2.8818]
[1754826255309,0.47456,4214.0,4213.9,1.1585]
[1754826255615,0.89086,4214.0,4213.9,2.8818]
[1754826255804,0.4163,4214.0,4213.9,2.8818]
[1754826256617,0.47453,4214.2,4213.9,1.7819]
[1754826256811,1.7963,4214.0,4213.9,2.8818]
[1754826258515,2.224,4214.0,4213.9,2.8818]
[1754826259024,2.6686,4214.0,4213.9,2.8818]
[1754826261511,3.14315,4214.0,4213.9,2.8818]
[1754826261916,2.69855,4214.0,4213.9,1.7833]
[1754826262216,3.14315,4214.0,4213.9,2.8818]
[1754826262917,3.14315,4214.0,4213.9,4.1502591]
[1754826264218,3.14315,4214.0,4213.9,2.8818]
[1754826264520,2.69855,4214.0,4213.9,2.8818]
[1754826266117,3.14315,4214.0,4213.9,2.8818]
[1754826266310,0.47459,4213.7,4213.6,3.38728622]
[1754826266517,0.47459,4213.7,4213.6,4.48578622]
[1754826266714,0.89089,4213.7,4213.6,4.48578622]
[1754826267223,3.14319,4213.7,4213.6,2.8818]
[1754826268618,1.63109,4213.7,4213.6,2.8818]
[1754826268823,2.27089,4213.7,4213.6,2.8818]
[1754826269009,3.14319,4213.7,4213.6,2.8818]
[1754826269615,3.14319,4213.7,4213.6,1.8315]
[1754826269810,3.14319,4213.7,4213.6,2.8818]
[1754826270020,3.14321,4213.5,4213.4,1.75354136]
[1754826270220,3.14321,4213.5,4213.4,3.90234136]
[1754826271222,0.17003464,4214.1,4214.0,2.257]
[1754826271415,2.224,4214.6,4214.5,1.1585]
[1754826271722,3.14308,4214.6,4214.5,2.70371145]
[1754826275922,3.14308,4214.6,4214.5,1.60521145]
[1754826279821,1.1931,4214.4,4214.3,1.1233]
[1754826280024,2.7408,4214.4,4214.3,2.9389]
[1754826281426,2.91083464,4214.4,4214.3,2.9389]
[1754826281720,3.21534,4214.1,4214.0,2.34933885]
[1754826281922,3.21534,4214.1,4214.0,1.27053885]
[1754826282130,3.21537,4213.8,4213.7,2.75753885]
[1754826282325,3.21537,4213.8,4213.7,4.20943885]
[1754826284127,3.21537,4213.8,4213.7,2.9389]
[1754826284427,3.21537,4213.8,4213.7,4.21123412]
[1754826285328,3.21537,4213.8,4213.7,2.9389]
[1754826285929,3.21537,4213.8,4213.7,4.21136896]
[1754826288223,1.66767,4213.8,4213.6,1.27246896]
[1754826288427,2.91083464,4213.7,4213.6,0.652]
[1754826288627,2.91083464,4213.7,4213.5,1.27246896]
[1754826288927,24.11257,4213.8,4213.4,1.02054136]
[1754826288928,2.7408,4213.5,4213.4,1.02054136]
[1754826289129,2.91083464,4213.5,4213.4,1.02054136]
[1754826290432,2.91083464,4213.5,4213.4,0.2302686]
[1754826290626,2.91355392,4213.5,4213.4,8.6e-06]
[1754826292337,2.7408,4213.5,4213.4,8.6e-06]
[1754826292533,2.7408,4213.5,4213.4,0.6520086]
[1754826292534,26.3758,4213.5,4213.4,0.6520086]
[1754826292829,0.62435392,4213.5,4213.4,1.1636086]
[1754826293030,24.1106,4213.6,4213.4,2.9389086]
[1754826293333,0.17275392,4213.5,4213.4,1.1636086]
[1754826294030,0.17275392,4213.5,4213.4,2.9389086]
[1754826295833,0.47459,4213.7,4213.6,2.9389]
[1754826296026,0.64734392,4213.7,4213.6,2.9389]
[1754826296322,0.17275392,4213.7,4213.6,2.9389]
[1754826296834,0.47457,4213.9,4213.5,0.4268]
[1754826296835,0.4746,4213.6,4213.5,0.4268]
[1754826297037,0.4746,4213.6,4213.5,1.1636]
[1754826297530,0.47458,4213.8,4213.5,1.1636]
[1754826297834,0.64731392,4213.9,4213.8,1.1636]
[1754826298033,0.64731392,4213.9,4213.8,2.9389]
[1754826298530,0.64731392,4213.9,4213.4,1.27247756]
[1754826298531,0.90571,4213.5,4213.4,1.27025156]
[1754826298733,1.66771,4213.5,4213.4,4.20915156]
[1754826299033,1.23661,4213.5,4213.4,4.20915156]
[1754826300032,2.36221,4213.5,4213.4,4.20915156]
[1754826300431,2.36221,4213.5,4213.4,2.9389086]
[1754826300635,1.23661,4213.5,4213.4,2.9389086]
[1754826301032,0.92621,4213.5,4213.4,2.9389086]
[1754826301230,0.47461,4213.5,4213.4,2.9389086]
[1754826301434,0.47459,4213.7,4213.4,2.9389086]
[1754826301638,0.47459,4213.7,4213.6,2.9389]
[1754826303335,0.64733392,4213.8,4213.7,2.9389]
[1754826303734,0.17275392,4213.8,4213.7,2.9389]
[1754826303941,0.17275392,4214.1,4214.0,2.9389]
[1754826304136,0.47452,4214.3,4214.1,1.7753]
[1754826304339,0.47452,4214.3,4214.2,1.1636]
[1754826304541,0.17275392,4214.7,4214.1,1.26983276]
[1754826304739,0.64722392,4214.7,4214.6,2.9389]
[1754826305832,24.09343,4215.1,4214.6,1.1636]
[1754826306136,24.09343,4215.1,4214.4,0.4745]
[1754826306137,0.47445,4214.9,4214.8,2.9484]
[1754826307241,3.21375,4214.9,4214.8,2.9484]
[1754826307645,3.21375,4214.9,4214.8,1.8197]
[1754826308046,3.21375,4214.9,4214.8,2.4652]
[1754826308346,3.21375,4214.9,4214.8,2.9484]
[1754826308742,2.80795,4214.9,4214.8,2.9484]
[1754826308945,1.21215,4214.9,4214.8,2.9484]
[1754826309345,3.21375,4214.9,4214.8,1.0864]
[1754826309545,1.65609,4214.5,4214.4,2.9484]
[1754826309841,0.47449,4214.6,4214.5,2.9484]
[1754826313142,0.47447,4214.7,4214.6,2.9484]
[1754826314250,0.47445,4215.0,4214.6,8.9484]
[1754826314450,0.47445,4215.0,4214.9,2.286]
[1754826314646,0.47445,4215.0,4214.9,2.9484]
[1754826315550,0.4744,4215.3,4215.0,1.7911]
[1754826315746,0.4744,4215.3,4215.2,2.9484]
[1754826316454,0.8846,4215.3,4215.2,2.9484]
[1754826317543,0.4744,4215.3,4215.2,2.9484]
[1754826317748,0.4744,4215.4,4215.2,1.1573]
[1754826317948,0.4744,4215.4,4215.3,2.9484]
[1754826318148,0.15718958,4215.5,4215.3,1.1573]
[1754826318353,0.4102,4215.0,4214.9,1.0741]
[1754826318555,0.47443,4215.1,4215.0,2.286]
[1754826318856,0.47442,4215.2,4215.1,2.9484]
[1754826319255,0.4744,4215.4,4215.3,1.1573]
[1754826319454,0.4744,4215.4,4215.3,2.9484]
[1754826319854,0.8846,4215.4,4215.3,2.9484]
[1754826321052,1.3694,4215.4,4215.3,2.9484]
[1754826321254,0.8846,4215.4,4215.3,2.9484]
[1754826322359,1.6969,4215.4,4215.3,2.9484]
[1754826323060,1.2121,4215.4,4215.3,2.9484]
[1754826324258,2.364,4215.4,4215.3,2.9484]
[1754826324455,3.2056,4215.4,4215.3,2.9484]
[1754826325261,2.8079,4215.4,4215.3,2.9484]
[1754826325461,1.6969,4215.4,4215.3,2.9484]
[1754826325962,2.364,4215.4,4215.3,2.9484]
[1754826326158,3.2056,4215.4,4215.3,2.9484]
[1754826327463,3.2056,4215.4,4215.3,1.0864]
[1754826327654,1.65603,4215.1,4215.0,2.9484]
[1754826327860,3.20565,4214.9,4214.8,9.07503276]
[1754826328059,3.20565,4214.9,4214.8,2.9484]
[1754826328060,0.47445,4214.9,4214.8,2.9484]
[1754826328261,2.36405,4214.9,4214.8,2.9484]
[1754826328459,1.8896,4214.9,4214.8,2.9484]
[1754826328762,1.2225,4214.9,4214.8,2.9484]
[1754826328962,0.7377,4214.9,4214.8,2.9484]
[1754826329761,1.8896,4214.9,4214.8,2.9484]
[1754826329965,2.3335,4214.9,4214.8,2.9484]
[1754826330257,2.7235,4214.9,4214.8,2.9484]
[1754826330859,0.895,4214.9,4214.8,2.9484]
[1754826331057,0.47444,4215.0,4214.8,1.1573]
[1754826331256,0.47444,4215.0,4214.9,2.9484]
[1754826332264,0.47444,4215.0,4214.9,4.21823276]
[1754826332460,0.15727155,4215.3,4215.0,1.7911]
[1754826332661,0.15727155,4215.3,4214.4,6.94398622]
[1754826332662,0.63167155,4215.4,4215.3,2.9484]
[1754826332862,1.04187155,4215.4,4215.3,2.9484]
[1754826333064,1.52667155,4215.4,4215.3,2.9484]
[1754826333564,2.52127155,4215.4,4215.3,2.9484]
[1754826334162,2.52127155,4215.4,4215.3,4.21767806]
[1754826334665,2.52127155,4215.4,4215.3,2.9484]
[1754826335267,2.52127155,4215.4,4215.3,4.21767806]
[1754826335463,1.37977155,4215.4,4215.3,4.21767806]
[1754826335656,0.47437,4215.6,4215.5,1.7881]
[1754826335861,2.69047,4215.6,4215.5,2.8972]
[1754826336056,3.23164155,4215.6,4215.5,2.8972]
[1754826336263,0.15727155,4215.6,4215.5,2.8972]
[1754826336562,0.15727155,4215.6,4215.5,4.16647806]
[1754826336563,2.41864155,4215.6,4215.5,4.16647806]
[1754826336868,3.23164155,4215.6,4215.5,4.16647806]
[1754826339269,2.75727155,4215.6,4215.5,4.16647806]
[1754826339571,1.1507,4215.6,4215.5,4.16647806]
[1754826339766,0.15727155,4215.6,4215.5,4.16647806]
[1754826340167,0.87334,4215.9,4215.6,2.4875]
[1754826340467,1.03061155,4215.9,4215.8,4.16749288]
[1754826340670,0.63159155,4216.0,4215.8,2.8972]
[1754826340972,0.15727155,4215.9,4215.8,2.8972]
[1754826341870,0.47432,4216.0,4215.8,2.8972]
[1754826342065,0.15727155,4216.2,4216.1,0.4097]
[1754826342272,0.63157155,4216.2,4216.1,2.8972]
[1754826342464,0.15727155,4216.2,4216.1,2.8972]
[1754826342972,24.31182,4216.9,4216.8,0.7345]
[1754826343175,27.26723542,4216.9,4216.8,2.8972]
[1754826343772,1.47859155,4216.9,4216.8,2.8972]
[1754826343972,2.41849155,4216.9,4216.8,2.8972]
[1754826344173,3.23149155,4216.9,4216.8,2.8972]
[1754826346175,3.07422,4216.9,4216.8,2.8972]
[1754826346476,2.37337155,4216.9,4216.8,2.8972]
[1754826346675,2.2161,4216.9,4216.8,2.8972]
[1754826347072,0.7517,4217.0,4216.9,1.4456]
[1754826347277,0.15727155,4217.0,4216.9,2.8972]
[1754826347586,2.75727155,4217.0,4216.9,2.8972]
[1754826348276,0.47422,4216.9,4216.6,0.6174]
[1754826348474,1.60599,4216.3,4216.2,2.5872]
[1754826348674,1.5156,4216.3,4216.2,2.8972]
[1754826349072,2.6,4216.3,4216.2,2.8972]
[1754826350172,3.64209315,4218.4,4216.3,0.4917]
[1754826350371,0.87321,4217.0,4216.9,2.8972]
[1754826350575,0.87321,4217.0,4216.1,1.60398622]
[1754826350576,1.30239,4216.3,4216.1,1.60398622]
[1754826350878,2.05409,4216.3,4216.2,1.1442]
[1754826351075,2.67219,4216.3,4216.2,1.1442]
[1754826351270,2.67219,4216.3,4216.2,2.8972]
[1754826351471,0.47426,4216.6,4216.2,1.1442]
[1754826351672,2.1979,4216.9,4216.8,2.2798]
[1754826351869,2.1979,4216.9,4216.8,2.8972]
[1754826352076,2.1979,4216.9,4216.8,1.1442]
[1754826352274,2.8342,4216.6,4216.5,2.8972]
[1754826353983,0.399,4216.6,4216.5,2.8972]
[1754826354282,0.87323,4216.8,4216.7,2.8972]
[1754826354879,1.32133,4216.8,4216.7,2.8972]
[1754826355085,2.67213,4216.8,4216.7,2.8972]
[1754826355481,2.05403,4216.8,4216.7,2.8972]
[1754826355677,2.67213,4216.8,4216.7,2.8972]
[1754826355986,3.30843,4216.8,4216.7,2.8972]
[1754826356181,2.69033,4216.8,4216.7,2.8972]
[1754826356378,2.05403,4216.8,4216.7,2.8972]
[1754826356781,1.5798,4216.8,4216.7,2.8972]
[1754826357783,2.8342,4216.8,4216.7,2.8972]
[1754826360286,2.8342,4216.8,4216.7,1.7881]
[1754826360485,1.1317,4216.5,4216.4,2.2533]
[1754826360684,2.8342,4216.5,4216.4,4.16375764]
[1754826360878,0.4742,4217.1,4216.5,0.4917]
[1754826361083,3.3084,4217.1,4217.0,1.1442]
[1754826361382,3.30843,4216.8,4216.7,2.8972]
[1754826362387,0.47421,4217.0,4216.8,1.753]
[1754826362593,0.399,4217.1,4217.0,2.8972]
[1754826362793,2.05394,4217.7,4217.6,2.8972]
[1754826362994,0.47414,4217.7,4217.6,2.8972]
[1754826363193,3.30834,4217.7,4217.6,2.8972]
[1754826363787,2.8342,4217.7,4217.6,2.8972]
[1754826364687,1.1317,4217.7,4217.6,2.8972]
[1754826364892,0.15174886,4218.5,4217.7,1.753]
[1754826365093,3.30826,4218.3,4218.2,2.8972]
[1754826365592,2.7856,4217.9,4217.8,2.811]
[1754826365792,3.25972,4217.9,4217.8,2.811]
[1754826366791,3.25974,4217.6,4217.5,1.26655764]
[1754826366996,2.7856,4217.5,4217.4,1.26655764]
[1754826367193,2.7856,4217.4,4217.3,3.43835764]
[1754826367392,2.7856,4217.4,4217.3,4.07755764]
[1754826368196,2.7856,4217.4,4217.3,1.26655764]
[1754826368393,1.18526,4218.0,4217.1,1.26655764]
[1754826368394,3.25978,4217.3,4217.1,1.26655764]
[1754826368593,2.7856,4217.2,4217.1,3.62285764]
[1754826368794,2.7856,4217.2,4217.1,2.811]
[1754826369188,2.7856,4217.1,4217.0,1.68775764]
[1754826369397,2.7856,4217.1,4217.0,4.07755764]
[1754826372094,2.7856,4217.1,4217.0,1.26655764]
[1754826372302,1.109,4217.1,4217.0,2.811]
[1754826372495,2.7856,4217.1,4217.0,2.811]
[1754826372690,0.88361,4217.0,4216.9,1.26655764]
[1754826372997,0.88361,4217.0,4216.0,28.94332]
[1754826372998,1.6766,4216.9,4216.8,1.26655764]
[1754826373199,2.7856,4216.8,4216.7,1.26655764]
[1754826373895,3.25985,4216.7,4216.5,1.26655764]
[1754826374094,2.3252,4216.4,4216.2,1.26655764]
[1754826374296,0.4743,4216.2,4216.1,1.26655764]
[1754826374496,3.2599,4216.2,4216.1,1.26655764]
[1754826375009,1.58332,4216.0,4215.7,1.26655764]
[1754826375197,2.7856,4215.8,4215.7,2.811]
[1754826377904,2.7856,4215.6,4215.5,1.26655764]
[1754826378105,3.25998,4215.5,4215.4,1.26655764]
[1754826378293,2.7856,4215.4,4215.3,2.58635764]
[1754826378492,1.6766,4215.3,4215.2,1.26655764]
[1754826378806,2.7856,4215.1,4215.0,3.62285764]
[1754826378999,2.7856,4215.1,4215.0,4.07755764]
[1754826379400,2.7856,4215.1,4215.0,2.811]
[1754826379597,2.7856,4215.0,4214.9,1.68775764]
[1754826379904,2.7856,4215.0,4214.9,4.07755764]
[1754826380292,0.47442,4215.2,4214.9,4.07755764]
[1754826380496,0.47442,4215.2,4215.1,0.3098]
[1754826380696,0.88382,4215.2,4215.1,2.811]
[1754826380901,2.66602,4215.2,4215.1,2.811]
[1754826381099,0.4604,4215.9,4215.1,1.1283]
[1754826381302,2.66594,4215.9,4215.8,2.811]
[1754826381496,3.25994,4215.9,4215.8,2.811]
[1754826382698,2.7856,4215.9,4215.8,2.811]
[1754826383297,0.4094,4215.9,4215.8,2.811]
[1754826383699,0.47431,4216.1,4215.8,2.811]
[1754826383999,1.6766,4216.8,4216.1,1.6827]
[1754826384204,3.25985,4216.7,4216.6,2.811]
[1754826388010,2.04365,4216.7,4216.6,2.811]
[1754826388307,3.25985,4216.7,4216.6,2.811]
[1754826389206,2.04365,4216.7,4216.6,2.811]
[1754826389505,0.88365,4216.7,4216.6,2.811]
[1754826389807,0.88362,4217.0,4216.9,1.2959]
[1754826390000,1.18752,4217.0,4216.9,2.811]
[1754826390203,2.04362,4217.0,4216.9,2.811]
[1754826390398,2.63762,4217.0,4216.9,2.811]
[1754826390804,3.25982,4217.0,4216.9,2.811]
[1754826391806,0.47429,4216.3,4216.2,1.1283]
[1754826392006,3.25989,4216.3,4216.2,2.811]
[1754826393311,0.4094,4216.3,4216.2,2.811]
[1754826394313,0.8698,4216.3,4216.2,2.811]
[1754826394816,2.7856,4216.3,4216.2,2.811]
[1754826397415,1.5979,4216.3,4216.2,1.1288]
[1754826397608,1.5979,4216.3,4216.2,2.7433]
[1754826398114,3.3072,4216.3,4216.2,2.7433]
[1754826400611,3.3072,4216.3,4216.2,4.00985764]
[1754826400811,3.3072,4216.3,4216.2,2.7433]
[1754826401619,0.4743,4216.3,4216.2,2.7433]
[1754826402718,0.8941,4216.3,4216.2,2.7433]
[1754826403018,0.4743,4216.3,4216.2,2.7433]
[1754826403218,0.8941,4216.3,4216.2,2.7433]
[1754826403419,1.3452,4216.3,4216.2,2.7433]
[1754826403618,2.3773,4216.3,4216.2,2.7433]
[1754826403822,2.6844,4216.3,4216.2,2.7433]
[1754826404007,3.3072,4216.3,4216.2,2.7433]
[1754826404211,2.049,4216.3,4216.2,2.7433]
[1754826404413,1.44167631,4217.0,4216.9,1.1288]
[1754826404716,2.68431,4217.0,4216.9,2.7433]
[1754826404917,1.59786,4216.6,4216.5,2.39577142]
[1754826405108,3.30716,4216.6,4216.5,2.7433]
[1754826405711,2.8329,4216.5,4216.4,1.26697142]
[1754826405925,1.59788,4216.4,4216.3,1.1288]
[1754826406217,1.59788,4216.4,4216.3,2.7433]
[1754826406619,3.30718,4216.4,4216.3,2.7433]
[1754826407819,0.47432,4216.0,4215.9,1.60398622]
[1754826408011,3.30722,4216.0,4215.9,4.34728622]
[1754826408619,1.5747,4216.0,4215.9,4.34728622]
[1754826409424,1.5747,4216.0,4215.9,2.7433]
[1754826410718,1.5747,4216.0,4215.9,4.43381155]
[1754826410914,1.5747,4216.0,4215.9,2.7433]
[1754826411318,0.47432,4216.1,4215.9,2.7433]
[1754826411518,0.47432,4216.1,4216.0,4.43396035]
[1754826411922,0.89412,4216.1,4216.0,4.43396035]
[1754826412119,1.34522,4216.1,4216.0,4.43396035]
[1754826412424,0.89412,4216.1,4216.0,2.7433]
[1754826412816,2.68442,4216.1,4216.0,2.7433]
[1754826413021,3.30722,4216.1,4216.0,2.7433]
[1754826413519,1.23252,4216.1,4216.0,2.7433]
[1754826413725,0.47432,4216.1,4216.0,2.7433]
[1754826414526,3.30722,4216.1,4216.0,2.7433]
[1754826415721,2.04902,4216.1,4216.0,2.7433]
[1754826415927,0.47431,4216.2,4216.1,2.7433]
[1754826416123,0.8941,4216.3,4216.2,2.2996]
[1754826416323,0.8941,4216.3,4216.2,4.43521341]
[1754826416724,1.3452,4216.3,4216.2,4.43521341]
[1754826416924,0.4743,4216.3,4216.2,4.43521341]
[1754826417127,0.47428,4216.4,4216.3,2.7433]
[1754826417426,3.30718,4216.4,4216.3,2.7433]
[1754826418929,0.47426,4216.6,4216.3,2.7433]
[1754826419130,1.34516,4216.6,4216.5,1.1288]
[1754826419321,0.8709,4216.6,4216.5,2.1599]
[1754826419552,0.8709,4216.6,4216.5,2.7433]
[1754826419745,0.4198,4216.6,4216.5,2.7433]
[1754826420229,0.8709,4216.6,4216.5,2.7433]
[1754826420528,2.8329,4216.6,4216.5,2.7433]
[1754826420724,2.8329,4216.6,4216.5,2.2996]
[1754826420925,2.8329,4216.4,4216.3,3.99151341]
[1754826421132,2.8329,4216.4,4216.3,3.42951341]
[1754826421427,2.8329,4216.4,4216.3,4.43521341]
[1754826422424,2.8329,4216.4,4216.3,2.7433]
[1754826422729,2.8329,4216.4,4216.3,4.43534658]
[1754826423032,2.8329,4216.4,4216.2,1.69204658]
[1754826423225,1.1236,4216.4,4216.3,2.7433]
[1754826423529,1.1236,4216.4,4216.3,4.43534658]
[1754826423930,2.8329,4216.4,4216.3,4.43534658]
[1754826425322,1.5747,4216.4,4216.3,4.43534658]
[1754826425622,0.4198,4216.4,4216.3,4.43534658]
[1754826425824,0.47426,4216.6,4216.3,4.43534658]
[1754826426026,3.22086,4216.6,4216.5,1.0996]
[1754826426222,2.7466,4216.6,4216.5,2.7052]
[1754826426427,1.4439,4216.9,4216.8,1.0996]
[1754826426625,1.4439,4216.9,4216.8,2.7052]
[1754826426827,0.3954,4216.9,4216.8,2.7052]
[1754826427029,2.1581,4216.9,4216.8,2.7052]
[1754826427230,0.549585,4217.3,4217.2,2.1365]
[1754826427425,2.7466,4217.3,4217.2,3.97317254]
[1754826427834,2.7466,4217.3,4217.2,2.7052]
[1754826428131,0.54956423,4217.7,4217.6,1.0996]
[1754826428325,0.54956423,4217.7,4217.6,2.7052]
[1754826428326,2.1581,4217.7,4217.6,2.7052]
[1754826428529,2.7466,4217.7,4217.6,3.97278787]
[1754826428723,0.86954,4217.6,4217.5,1.26758787]
[1754826428923,3.22074,4217.6,4217.5,1.26758787]
[1754826429327,3.22074,4217.6,4217.5,3.97278787]
[1754826430230,3.22074,4217.6,4217.5,1.67518787]
[1754826430430,3.22074,4217.6,4217.5,0.4076]
[1754826430630,3.22074,4217.6,4217.5,2.7052]
[1754826431132,3.22078,4217.3,4217.2,2.7052]
[1754826431334,2.7466,4217.3,4217.2,2.7052]
[1754826432538,0.47416,4217.5,4217.2,2.7052]
[1754826432735,0.47416,4217.5,4217.2,1.0996]
[1754826433036,2.1581,4217.4,4217.3,2.7052]
[1754826433430,2.7466,4217.4,4217.3,2.7052]
[1754826440637,2.7466,4217.0,4216.9,2.7052]
[1754826440836,3.22081,4217.0,4216.9,2.7052]
[1754826441434,2.7466,4217.0,4216.9,2.7052]
[1754826442342,1.5386,4217.0,4216.9,2.7052]
[1754826442543,2.1581,4217.0,4216.9,2.7052]
[1754826442738,2.7466,4217.0,4216.9,2.7052]
[1754826443540,2.7466,4217.0,4216.9,3.97092998]
[1754826443736,2.7466,4217.0,4216.9,1.26572998]
[1754826443941,2.7466,4217.0,4216.8,6.60572998]
[1754826444241,2.7466,4216.9,4216.8,9.31092998]
[1754826445045,2.7466,4216.9,4216.8,1.26572998]
[1754826445258,3.22083,4216.8,4216.7,2.36532998]
[1754826445647,1.637,4217.4,4216.7,1.0996]
[1754826445956,3.22077,4217.4,4217.3,2.7052]
[1754826446158,0.86957,4217.4,4217.3,2.7052]
[1754826447961,0.15392195,4218.1,4217.3,2.7052]
[1754826448150,0.4741,4218.1,4217.8,1.698]
[1754826448353,1.7148,4218.0,4217.9,2.7052]
[1754826449150,1.0175,4218.9,4218.0,1.6056]
[1754826449360,0.3954,4218.2,4218.1,3.97052391]
[1754826449858,0.9839,4218.2,4218.1,3.97052391]
[1754826450255,1.7148,4218.2,4218.1,3.97052391]
[1754826450655,2.6771,4218.2,4218.1,0.9773]
[1754826451164,2.6771,4218.2,4218.1,1.3849]
[1754826451455,2.6771,4218.2,4218.1,2.1068]
[1754826451756,0.47404,4218.6,4218.5,1.0996]
[1754826451960,0.6973,4218.6,4218.5,1.0996]
[1754826452161,1.2858,4218.6,4218.5,1.0996]
[1754826452459,1.1096,4218.4,4218.2,0.5687]
[1754826452648,2.6771,4218.3,4218.2,2.24164174]
[1754826452853,2.6771,4218.3,4218.2,3.96954174]
[1754826453765,2.60118,4218.2,4218.1,1.26434174]
[1754826453961,1.58371,4217.9,4217.8,2.36394174]
[1754826454168,3.15121,4217.9,4217.8,2.96234174]
[1754826454656,3.15121,4217.9,4217.8,3.96954174]
[1754826455363,3.15121,4217.9,4217.8,2.7052]
[1754826455559,1.75656,4217.5,4217.4,2.7106]
[1754826455756,2.1561,4217.5,4217.4,2.7106]
[1754826455953,2.6956,4217.5,4217.4,2.7106]
[1754826456359,2.6956,4217.5,4217.4,2.1058]
[1754826456559,2.6956,4217.5,4217.4,1.6414]
[1754826456862,2.6956,4217.5,4217.4,1.357]
[1754826457063,2.6956,4217.5,4217.4,2.7106]
[1754826457465,2.1561,4217.5,4217.4,2.7106]
[1754826457658,0.6886,4217.5,4217.4,2.7106]
[1754826457861,0.4741,4218.1,4217.8,1.0719]
[1754826458065,0.8524,4218.1,4218.0,2.7106]
[1754826458253,1.4462,4218.1,4218.0,2.7106]
[1754826458459,0.6886,4218.1,4218.0,1.0719]
[1754826458664,2.6956,4218.1,4218.0,2.8018277]
[1754826458856,2.6956,4218.1,4218.0,1.2655277]
[1754826459058,3.1697,4218.0,4217.8,1.2655277]
[1754826459268,2.6956,4217.9,4217.8,1.2655277]
[1754826459565,2.6956,4217.8,4217.7,1.2655277]
[1754826459864,2.6956,4217.8,4217.7,2.2098277]
[1754826460257,2.6956,4217.8,4217.7,2.1058]
[1754826461268,2.6956,4217.8,4217.7,0.9443]
[1754826461463,1.1042,4217.5,4217.4,1.6414]
[1754826461658,2.1561,4217.5,4217.4,2.7106]
[1754826462465,2.6956,4217.5,4217.4,2.1058]
[1754826462864,2.6956,4217.5,4217.4,2.7106]
[1754826463661,2.1561,4217.3,4217.2,1.69204658]
[1754826463871,2.6956,4217.2,4217.1,0.9443]
[1754826464364,2.6956,4217.2,4217.1,1.6414]
[1754826464567,2.6956,4217.2,4217.1,2.1058]
[1754826465562,2.6956,4217.2,4217.1,2.7106]
[1754826465761,2.1561,4217.2,4217.1,2.7106]
[1754826466168,2.1721,4218.0,4217.9,1.0719]
[1754826466470,3.1625,4218.0,4217.9,2.1058]
[1754826467566,2.6884,4217.7,4217.6,1.0719]
[1754826467764,2.6884,4217.7,4217.6,0.3748]
[1754826468470,2.6884,4217.7,4217.6,0.9443]
[1754826468676,2.6884,4217.7,4217.6,0.3748]
[1754826469167,2.6884,4217.7,4217.6,1.357]
[1754826469362,2.6884,4217.7,4217.6,2.1058]
[1754826469560,2.6884,4217.7,4217.6,2.7106]
[1754826469758,3.16254,4217.6,4217.5,2.8020281]
[1754826470363,3.16254,4217.6,4217.5,3.3715281]
[1754826470563,3.16254,4217.6,4217.5,2.6227281]
[1754826470765,3.16254,4217.6,4217.5,1.2657281]
[1754826470964,1.18526,4218.0,4216.7,3.22834658]
[1754826470965,1.1042,4216.8,4216.7,3.22834658]
[1754826471170,2.6884,4216.8,4216.7,2.1058]
[1754826471370,3.16263,4216.8,4216.7,1.6414]
[1754826472066,3.16263,4216.8,4216.7,2.1058]
[1754826472262,3.16263,4216.8,4216.7,1.6414]
[1754826472869,3.16268,4216.4,4216.3,3.33344658]
[1754826473170,3.16268,4216.4,4216.3,0.9443]
[1754826473469,2.21478,4216.4,4216.3,2.7106]
[1754826473670,0.47428,4216.4,4216.3,2.7106]
[1754826473873,0.47428,4216.5,4216.4,2.7106]
[1754826474174,0.47426,4216.7,4216.4,1.0719]
[1754826474375,0.47426,4216.7,4216.6,2.7106]
[1754826474773,2.63036,4216.7,4216.6,2.7106]
[1754826474973,3.16266,4216.7,4216.6,2.7106]
[1754826477983,2.21476,4216.7,4216.6,2.7106]
[1754826478383,3.16266,4216.7,4216.6,2.7106]
[1754826478784,3.16266,4216.7,4216.6,2.1058]
[1754826478985,3.16266,4216.7,4216.6,1.6414]
[1754826479986,3.16266,4216.7,4216.6,2.1058]
[1754826480884,2.63039,4216.4,4216.3,1.0719]
[1754826481088,3.16269,4216.4,4216.3,1.6414]
[1754826481281,3.16269,4216.4,4216.3,2.7106]
[1754826482089,0.47429,4216.4,4216.3,2.7106]
[1754826482483,0.47426,4216.6,4216.4,1.6387]
[1754826482676,0.47426,4216.6,4216.3,1.0719]
[1754826482677,0.47425,4216.7,4216.6,2.0514]
[1754826482880,0.85255,4216.7,4216.6,2.7106]
[1754826483090,1.44635,4216.7,4216.6,2.7106]
[1754826483487,2.21475,4216.7,4216.6,2.7106]
[1754826483878,0.6886,4216.2,4216.1,2.94394658]
[1754826484083,2.63041,4216.1,4216.0,0.9443]
[1754826484283,3.16271,4216.1,4216.0,0.9443]
[1754826484784,0.47431,4216.1,4216.0,2.1058]
[1754826484986,0.47431,4216.1,4216.0,2.7106]
[1754826485383,0.47431,4216.1,4216.0,2.1058]
[1754826485587,3.16361,4216.1,4216.0,2.6904]
[1754826485783,3.16361,4216.1,4216.0,0.6971]
[1754826485988,3.16361,4216.1,4216.0,2.0885]
[1754826486189,3.16361,4216.1,4216.0,2.6731]
[1754826486583,1.59441,4216.1,4215.9,0.5917]
[1754826486784,2.6893,4216.0,4215.9,0.9677]
[1754826486992,2.6893,4216.0,4215.9,2.0751]
[1754826487283,0.88291,4216.1,4216.0,2.6597]
[1754826487490,0.47431,4216.1,4216.0,2.6597]
[1754826487789,2.18135,4215.8,4215.7,3.34344658]
[1754826487983,3.16365,4215.8,4215.7,3.76714658]
[1754826488184,3.16365,4215.8,4215.7,2.0751]